[Event "Titled Tuesday Blitz April 11 Late 2023"]
[White "Rodshtein, Maxim"]
[Black "Richter, Paul"]
[WhiteFideId "2806851"]
[BlackFideId "2046350"]
[WhiteElo "2555"]
[BlackElo "2171"]
[Result "1-0"]
[Round "02"]
[TimeControl "180+2"]
[Date "2023.04.11"]
[WhiteClock "0:00:30"]
[BlackClock "0:00:02"]

1. b3 {[%clk 0:02:54]}  Nf6 {[%clk 0:02:53]} 2. Bb2 {[%clk 0:02:54]}  g6 {[%clk 0:02:54]} 3. c4 {[%clk 0:02:54]}  Bg7 {[%clk 0:02:54]} 4. g3 {[%clk 0:02:55]}  d6 {[%clk 0:02:54]} 5. d4 {[%clk 0:02:54]}  O-O {[%clk 0:02:54]} 6. Bg2 {[%clk 0:02:53]}  Nbd7 {[%clk 0:02:54]} 7. Nf3 {[%clk 0:02:53]}  Re8 {[%clk 0:02:54]} 8. Nc3 {[%clk 0:02:48]}  e5 {[%clk 0:02:53]} 9. e3 {[%clk 0:02:45]}  exd4 {[%clk 0:02:48]} 10. Nxd4 {[%clk 0:02:45]}  a5 {[%clk 0:02:45]} 11. O-O {[%clk 0:02:44]}  Nc5 {[%clk 0:02:45]} 12. Qc2 {[%clk 0:02:42]}  c6 {[%clk 0:02:45]} 13. Rab1 {[%clk 0:02:34]}  Qc7 {[%clk 0:02:43]} 14. h3 {[%clk 0:02:33]}  h5 {[%clk 0:02:42]} 15. Rfd1 {[%clk 0:02:31]}  Bd7 {[%clk 0:02:40]} 16. Ba1 {[%clk 0:02:28]}  Rad8 {[%clk 0:02:34]} 17. a3 {[%clk 0:02:28]}  Ne6 {[%clk 0:02:28]} 18. Nxe6 {[%clk 0:02:21]}  Bxe6 {[%clk 0:02:28]} 19. Rbc1 {[%clk 0:01:49]}  Bf5 {[%clk 0:02:22]} 20. e4 {[%clk 0:01:37]}  Bc8 {[%clk 0:02:21]} 21. Ne2 {[%clk 0:01:19]}  Qe7 {[%clk 0:01:58]} 22. Qc3 {[%clk 0:01:19]}  h4 {[%clk 0:01:47]} 23. g4 {[%clk 0:01:17]}  b6 {[%clk 0:01:16]} 24. Re1 {[%clk 0:01:04]}  Rf8 {[%clk 0:01:06]} 25. Nd4 {[%clk 0:00:56]}  Bb7 {[%clk 0:01:05]} 26. f4 {[%clk 0:00:53]}  c5 {[%clk 0:00:36]} 27. Nb5 {[%clk 0:00:47]}  Nh5 {[%clk 0:00:35]} 28. Qd2 {[%clk 0:00:45]}  Bxa1 {[%clk 0:00:34]} 29. Rxa1 {[%clk 0:00:45]}  Ng3 {[%clk 0:00:32]} 30. Nc3 {[%clk 0:00:46]}  Bc6 {[%clk 0:00:24]} 31. Re3 {[%clk 0:00:44]}  Rfe8 {[%clk 0:00:23]} 32. Rae1 {[%clk 0:00:44]}  Qf6 {[%clk 0:00:22]} 33. Qf2 {[%clk 0:00:43]}  Qd4 {[%clk 0:00:21]} 34. a4 {[%clk 0:00:42]}  Ba8 {[%clk 0:00:20]} 35. Ne2 {[%clk 0:00:42]}  Nxe2+ {[%clk 0:00:19]} 36. R1xe2 {[%clk 0:00:42]}  Qf6 {[%clk 0:00:19]} 37. g5 {[%clk 0:00:42]}  Qa1+ {[%clk 0:00:19]} 38. Kh2 {[%clk 0:00:42]}  Qd4 {[%clk 0:00:18]} 39. Qxh4 {[%clk 0:00:41]}  Re7 {[%clk 0:00:18]} 40. Qe1 {[%clk 0:00:39]}  Rde8 {[%clk 0:00:19]} 41. h4 {[%clk 0:00:39]}  Qh8 {[%clk 0:00:16]} 42. Kg3 {[%clk 0:00:39]}  Qd4 {[%clk 0:00:16]} 43. Rd2 {[%clk 0:00:37]}  Qg7 {[%clk 0:00:13]} 44. Rxd6 {[%clk 0:00:36]}  Qb2 {[%clk 0:00:12]} 45. Rd2 {[%clk 0:00:36]}  Qg7 {[%clk 0:00:10]} 46. e5 {[%clk 0:00:36]}  Bxg2 {[%clk 0:00:09]} 47. Kxg2 {[%clk 0:00:37]}  Re6 {[%clk 0:00:06]} 48. Rd5 {[%clk 0:00:36]}  Qf8 {[%clk 0:00:07]} 49. Qg3 {[%clk 0:00:35]}  Qe7 {[%clk 0:00:07]} 50. Red3 {[%clk 0:00:35]}  Qb7 {[%clk 0:00:07]} 51. Qf3 {[%clk 0:00:35]}  Qc8 {[%clk 0:00:07]} 52. h5 {[%clk 0:00:35]}  R6e7 {[%clk 0:00:06]} 53. Rd6 {[%clk 0:00:34]}  Re6 {[%clk 0:00:05]} 54. hxg6 {[%clk 0:00:33]}  fxg6 {[%clk 0:00:06]} 55. Qd5 {[%clk 0:00:32]}  Kf7 {[%clk 0:00:04]} 56. Rh3 {[%clk 0:00:31]}  Kg8 {[%clk 0:00:02]} 57. Rh6 {[%clk 0:00:30]}  Kg7 {[%clk 0:00:02]} 58. Rd7+ {[%clk 0:00:30]} 1-0


[Site "https://www.chess.com"]

[Event "Titled Tuesday Blitz April 11 Late 2023"]
[White "Mortazavi, Ali"]
[Black "Yanchenko, Roman"]
[WhiteFideId "401323"]
[BlackFideId "4137329"]
[WhiteElo "2339"]
[BlackElo "2491"]
[Result "1-0"]
[Round "02"]
[TimeControl "180+2"]
[Date "2023.04.11"]
[WhiteClock "0:00:23"]
[BlackClock "0:00:06"]

1. Nf3 {[%clk 0:03:00]}  d5 {[%clk 0:02:59]} 2. g3 {[%clk 0:03:01]}  Nf6 {[%clk 0:02:59]} 3. Bg2 {[%clk 0:03:02]}  Bf5 {[%clk 0:03:00]} 4. O-O {[%clk 0:03:03]}  e6 {[%clk 0:03:00]} 5. d3 {[%clk 0:03:03]}  Be7 {[%clk 0:03:00]} 6. c4 {[%clk 0:03:04]}  c6 {[%clk 0:03:01]} 7. Be3 {[%clk 0:03:05]}  O-O {[%clk 0:03:01]} 8. Qb3 {[%clk 0:03:05]}  Qc8 {[%clk 0:03:01]} 9. Nc3 {[%clk 0:03:06]}  Nbd7 {[%clk 0:03:01]} 10. Rac1 {[%clk 0:03:06]}  dxc4 {[%clk 0:02:58]} 11. Qxc4 {[%clk 0:03:05]}  Nd5 {[%clk 0:02:53]} 12. Bd2 {[%clk 0:03:04]}  Bg6 {[%clk 0:02:53]} 13. e4 {[%clk 0:02:53]}  N5b6 {[%clk 0:02:12]} 14. Qb3 {[%clk 0:02:53]}  Rd8 {[%clk 0:02:07]} 15. d4 {[%clk 0:02:47]}  Nf6 {[%clk 0:02:04]} 16. Rfe1 {[%clk 0:02:39]}  Bh5 {[%clk 0:01:55]} 17. Be3 {[%clk 0:02:30]}  Ng4 {[%clk 0:01:41]} 18. Bf4 {[%clk 0:02:28]}  Nf6 {[%clk 0:01:40]} 19. Be3 {[%clk 0:02:25]}  h6 {[%clk 0:01:39]} 20. h3 {[%clk 0:02:25]}  Bxf3 {[%clk 0:01:35]} 21. Bxf3 {[%clk 0:02:24]}  Qd7 {[%clk 0:01:36]} 22. Red1 {[%clk 0:02:17]}  Rac8 {[%clk 0:01:35]} 23. a4 {[%clk 0:02:15]}  Na8 {[%clk 0:01:22]} 24. Bg2 {[%clk 0:02:15]}  b6 {[%clk 0:01:19]} 25. d5 {[%clk 0:02:06]}  exd5 {[%clk 0:01:15]} 26. exd5 {[%clk 0:02:06]}  c5 {[%clk 0:01:16]} 27. a5 {[%clk 0:01:42]}  Bd6 {[%clk 0:01:09]} 28. Bf1 {[%clk 0:01:33]}  Rb8 {[%clk 0:01:04]} 29. axb6 {[%clk 0:01:28]}  axb6 {[%clk 0:01:01]} 30. Nb5 {[%clk 0:01:29]}  Be5 {[%clk 0:00:49]} 31. d6 {[%clk 0:01:16]}  Ne8 {[%clk 0:00:47]} 32. Qd5 {[%clk 0:01:11]}  Bxb2 {[%clk 0:00:46]} 33. Rc2 {[%clk 0:01:06]}  Nf6 {[%clk 0:00:46]} 34. Qd2 {[%clk 0:00:55]}  Be5 {[%clk 0:00:46]} 35. f4 {[%clk 0:00:54]}  Ne4 {[%clk 0:00:27]} 36. Qg2 {[%clk 0:00:54]}  Bd4 {[%clk 0:00:11]} 37. Bxd4 {[%clk 0:00:43]}  cxd4 {[%clk 0:00:12]} 38. Qxe4 {[%clk 0:00:42]}  Re8 {[%clk 0:00:11]} 39. Qxd4 {[%clk 0:00:40]}  Rbd8 {[%clk 0:00:12]} 40. Rcd2 {[%clk 0:00:34]}  Qf5 {[%clk 0:00:10]} 41. g4 {[%clk 0:00:33]}  Qd7 {[%clk 0:00:08]} 42. Kh2 {[%clk 0:00:30]}  Qc6 {[%clk 0:00:07]} 43. Qd5 {[%clk 0:00:27]}  Qd7 {[%clk 0:00:06]} 44. Bc4 {[%clk 0:00:26]}  Rf8 {[%clk 0:00:05]} 45. Re2 {[%clk 0:00:25]}  Kh8 {[%clk 0:00:06]} 46. Re7 {[%clk 0:00:25]}  Qc8 {[%clk 0:00:06]} 47. Bd3 {[%clk 0:00:23]}  Qb8 {[%clk 0:00:06]} 48. Qf5 {[%clk 0:00:23]}  Rxd6 {[%clk 0:00:06]} 49. Qh7# {[%clk 0:00:23]} 1-0


[Site "https://www.chess.com"]

[Event "Titled Tuesday Blitz April 11 Late 2023"]
[White "Riehle, Marco"]
[Black "Mikhalsky, Vladimir"]
[WhiteFideId "12904392"]
[BlackFideId "14144352"]
[WhiteElo "2462"]
[BlackElo "2236"]
[Result "1-0"]
[Round "02"]
[TimeControl "180+2"]
[Date "2023.04.11"]
[WhiteClock "0:00:33"]
[BlackClock "0:00:07"]

1. e4 {[%clk 0:03:00]}  g6 {[%clk 0:03:00]} 2. d4 {[%clk 0:02:58]}  Bg7 {[%clk 0:03:00]} 3. Nc3 {[%clk 0:02:54]}  d6 {[%clk 0:03:01]} 4. Be3 {[%clk 0:02:51]}  a6 {[%clk 0:03:00]} 5. h4 {[%clk 0:02:52]}  h5 {[%clk 0:03:00]} 6. Nh3 {[%clk 0:02:50]}  Bxh3 {[%clk 0:02:59]} 7. Rxh3 {[%clk 0:02:51]}  b5 {[%clk 0:02:59]} 8. Qe2 {[%clk 0:02:50]}  Nc6 {[%clk 0:02:56]} 9. O-O-O {[%clk 0:02:49]}  Nf6 {[%clk 0:02:53]} 10. e5 {[%clk 0:02:42]}  Ng4 {[%clk 0:02:51]} 11. Bg5 {[%clk 0:02:36]}  Qd7 {[%clk 0:02:25]} 12. Rhd3 {[%clk 0:02:22]}  O-O {[%clk 0:02:16]} 13. f3 {[%clk 0:02:18]}  Nh2 {[%clk 0:02:02]} 14. e6 {[%clk 0:02:14]}  fxe6 {[%clk 0:01:45]} 15. Qe4 {[%clk 0:02:14]}  Nxf1 {[%clk 0:01:42]} 16. Rxf1 {[%clk 0:02:09]}  Rf5 {[%clk 0:01:39]} 17. g4 {[%clk 0:02:09]}  hxg4 {[%clk 0:01:38]} 18. Qxg4 {[%clk 0:02:08]}  e5 {[%clk 0:01:24]} 19. h5 {[%clk 0:01:56]}  gxh5 {[%clk 0:01:08]} 20. Qxh5 {[%clk 0:01:57]}  Qe8 {[%clk 0:01:07]} 21. Qh4 {[%clk 0:01:47]}  Qg6 {[%clk 0:01:03]} 22. Rg1 {[%clk 0:01:43]}  Nxd4 {[%clk 0:00:54]} 23. Be3 {[%clk 0:01:33]}  Qf7 {[%clk 0:00:54]} 24. Bh6 {[%clk 0:01:26]}  Ne6 {[%clk 0:00:49]} 25. Nd5 {[%clk 0:01:23]}  Re8 {[%clk 0:00:46]} 26. Nxc7 {[%clk 0:01:21]}  Nxc7 {[%clk 0:00:43]} 27. Rxg7+ {[%clk 0:01:22]}  Qxg7 {[%clk 0:00:44]} 28. Bxg7 {[%clk 0:01:23]}  Kxg7 {[%clk 0:00:44]} 29. Rd1 {[%clk 0:01:20]}  Kf7 {[%clk 0:00:34]} 30. Qh6 {[%clk 0:01:15]}  Rf6 {[%clk 0:00:32]} 31. Qh7+ {[%clk 0:01:11]}  Ke6 {[%clk 0:00:32]} 32. Qh3+ {[%clk 0:01:12]}  Rf5 {[%clk 0:00:30]} 33. Rg1 {[%clk 0:01:09]}  Rf8 {[%clk 0:00:29]} 34. Rg7 {[%clk 0:01:05]}  Nd5 {[%clk 0:00:26]} 35. a3 {[%clk 0:01:02]}  Kd7 {[%clk 0:00:25]} 36. Rg5 {[%clk 0:00:54]}  Ke6 {[%clk 0:00:22]} 37. Kb1 {[%clk 0:00:53]}  Nf4 {[%clk 0:00:21]} 38. Qg4 {[%clk 0:00:50]}  Rf6 {[%clk 0:00:20]} 39. Rg8 {[%clk 0:00:47]}  Kd7 {[%clk 0:00:19]} 40. Qg1 {[%clk 0:00:46]}  Ne2 {[%clk 0:00:18]} 41. Qa7+ {[%clk 0:00:45]}  Ke6 {[%clk 0:00:19]} 42. Qxa6 {[%clk 0:00:44]}  Nd4 {[%clk 0:00:19]} 43. Qc8+ {[%clk 0:00:43]}  Kd5 {[%clk 0:00:18]} 44. c3 {[%clk 0:00:42]}  Nc6 {[%clk 0:00:16]} 45. Qb7 {[%clk 0:00:41]}  Kc5 {[%clk 0:00:13]} 46. Rc8 {[%clk 0:00:39]}  d5 {[%clk 0:00:13]} 47. b4+ {[%clk 0:00:38]}  Kc4 {[%clk 0:00:13]} 48. Rxc6+ {[%clk 0:00:37]}  Kb3 {[%clk 0:00:13]} 49. Rxf6 {[%clk 0:00:37]}  Rxf6 {[%clk 0:00:13]} 50. Qxd5+ {[%clk 0:00:37]}  Kxc3 {[%clk 0:00:14]} 51. Qxe5+ {[%clk 0:00:37]}  Kb3 {[%clk 0:00:14]} 52. Qe3+ {[%clk 0:00:36]}  Ka4 {[%clk 0:00:14]} 53. Kb2 {[%clk 0:00:34]}  Rxf3 {[%clk 0:00:07]} 54. Qa7# {[%clk 0:00:33]} 1-0


[Site "https://www.chess.com"]

[Event "Titled Tuesday Blitz April 11 Late 2023"]
[White "Barp, Alberto"]
[Black "Gutkin, Ilya"]
[WhiteFideId "872555"]
[BlackFideId "16203470"]
[WhiteElo "2313"]
[BlackElo "2265"]
[Result "1-0"]
[Round "02"]
[TimeControl "180+2"]
[Date "2023.04.11"]
[WhiteClock "0:00:41"]
[BlackClock "0:00:01"]

1. c4 {[%clk 0:02:56]}  c5 {[%clk 0:02:59]} 2. Nf3 {[%clk 0:02:52]}  g6 {[%clk 0:02:59]} 3. Nc3 {[%clk 0:02:47]}  Bg7 {[%clk 0:02:58]} 4. e3 {[%clk 0:02:45]}  Nf6 {[%clk 0:02:57]} 5. d4 {[%clk 0:02:45]}  cxd4 {[%clk 0:02:58]} 6. exd4 {[%clk 0:02:46]}  d5 {[%clk 0:02:58]} 7. cxd5 {[%clk 0:02:47]}  Nxd5 {[%clk 0:02:58]} 8. Bc4 {[%clk 0:02:47]}  Nxc3 {[%clk 0:02:50]} 9. bxc3 {[%clk 0:02:47]}  O-O {[%clk 0:02:49]} 10. O-O {[%clk 0:02:45]}  Nc6 {[%clk 0:02:48]} 11. Re1 {[%clk 0:02:44]}  e6 {[%clk 0:02:34]} 12. h4 {[%clk 0:02:38]}  b6 {[%clk 0:02:02]} 13. h5 {[%clk 0:02:37]}  Na5 {[%clk 0:01:56]} 14. Bd3 {[%clk 0:02:36]}  Bb7 {[%clk 0:01:55]} 15. hxg6 {[%clk 0:02:27]}  hxg6 {[%clk 0:01:55]} 16. Ng5 {[%clk 0:02:25]}  Bd5 {[%clk 0:01:21]} 17. Qg4 {[%clk 0:02:21]}  Rc8 {[%clk 0:01:04]} 18. Qh4 {[%clk 0:02:14]}  Re8 {[%clk 0:00:52]} 19. Ba3 {[%clk 0:01:59]}  Re7 {[%clk 0:00:51]} 20. Qh7+ {[%clk 0:01:24]}  Kf8 {[%clk 0:00:51]} 21. Nxf7 {[%clk 0:01:14]}  Kxf7 {[%clk 0:00:44]} 22. Bxg6+ {[%clk 0:01:14]}  Kf8 {[%clk 0:00:45]} 23. Be4 {[%clk 0:00:46]}  Nc4 {[%clk 0:00:07]} 24. Bxe7+ {[%clk 0:00:45]}  Qxe7 {[%clk 0:00:05]} 25. Bxd5 {[%clk 0:00:45]}  Qg5 {[%clk 0:00:01]} 26. Bxe6 {[%clk 0:00:42]}  Rd8 {[%clk 0:00:01]} 27. Bxc4 {[%clk 0:00:41]} 1-0


[Site "https://www.chess.com"]

[Event "Titled Tuesday Blitz April 11 Late 2023"]
[White "Pulpan, Jakub"]
[Black "Jarocka, Liwia"]
[WhiteFideId "302759"]
[BlackFideId "21807558"]
[WhiteElo "2484"]
[BlackElo "2013"]
[Result "1-0"]
[Round "02"]
[TimeControl "180+2"]
[Date "2023.04.11"]
[WhiteClock "0:01:21"]
[BlackClock "0:00:49"]

1. e4 {[%clk 0:02:51]}  d6 {[%clk 0:02:57]} 2. d4 {[%clk 0:02:49]}  g6 {[%clk 0:02:58]} 3. b3 {[%clk 0:02:45]}  Bg7 {[%clk 0:02:57]} 4. Bb2 {[%clk 0:02:46]}  Nf6 {[%clk 0:02:55]} 5. Nd2 {[%clk 0:02:39]}  O-O {[%clk 0:02:49]} 6. Ngf3 {[%clk 0:02:39]}  Nbd7 {[%clk 0:02:42]} 7. Be2 {[%clk 0:02:39]}  c5 {[%clk 0:02:41]} 8. d5 {[%clk 0:02:38]}  e6 {[%clk 0:02:38]} 9. dxe6 {[%clk 0:02:37]}  fxe6 {[%clk 0:02:36]} 10. O-O {[%clk 0:02:29]}  Qe7 {[%clk 0:02:26]} 11. e5 {[%clk 0:02:24]}  dxe5 {[%clk 0:02:24]} 12. Nxe5 {[%clk 0:02:25]}  Nxe5 {[%clk 0:02:24]} 13. Bxe5 {[%clk 0:02:22]}  Rd8 {[%clk 0:02:24]} 14. Bd3 {[%clk 0:02:15]}  Bd7 {[%clk 0:02:09]} 15. Qe2 {[%clk 0:02:11]}  Bc6 {[%clk 0:02:06]} 16. Rae1 {[%clk 0:02:11]}  Ne8 {[%clk 0:01:57]} 17. Bxg7 {[%clk 0:02:01]}  Nxg7 {[%clk 0:01:58]} 18. Nc4 {[%clk 0:02:01]}  b6 {[%clk 0:01:49]} 19. Ne5 {[%clk 0:01:56]}  Bb7 {[%clk 0:01:45]} 20. Be4 {[%clk 0:01:53]}  Rd4 {[%clk 0:01:42]} 21. Bxb7 {[%clk 0:01:52]}  Qxb7 {[%clk 0:01:43]} 22. c3 {[%clk 0:01:52]}  Rd5 {[%clk 0:01:42]} 23. Qe4 {[%clk 0:01:45]}  Qc7 {[%clk 0:01:34]} 24. c4 {[%clk 0:01:44]}  Rdd8 {[%clk 0:01:33]} 25. Ng4 {[%clk 0:01:40]}  Kh8 {[%clk 0:01:06]} 26. Re3 {[%clk 0:01:37]}  Rac8 {[%clk 0:01:04]} 27. Rh3 {[%clk 0:01:37]}  Qe7 {[%clk 0:00:54]} 28. Qxg6 {[%clk 0:01:33]}  Nf5 {[%clk 0:00:54]} 29. Nf6 {[%clk 0:01:32]}  Rc7 {[%clk 0:00:49]} 30. Nxh7 {[%clk 0:01:21]} 1-0


[Site "https://www.chess.com"]

[Event "Titled Tuesday Blitz April 11 Late 2023"]
[White "Weetik, Vjacheslav"]
[Black "Prieto Aranguren, Alain"]
[WhiteFideId "4153472"]
[BlackFideId "2268906"]
[WhiteElo "2469"]
[BlackElo "2209"]
[Result "1-0"]
[Round "02"]
[TimeControl "180+2"]
[Date "2023.04.11"]
[WhiteClock "0:00:29"]
[BlackClock "0:01:13"]

1. d4 {[%clk 0:02:59]}  d5 {[%clk 0:02:59]} 2. c4 {[%clk 0:02:55]}  c6 {[%clk 0:02:56]} 3. Nf3 {[%clk 0:02:54]}  Nf6 {[%clk 0:02:55]} 4. g3 {[%clk 0:02:54]}  dxc4 {[%clk 0:02:52]} 5. Bg2 {[%clk 0:02:54]}  b5 {[%clk 0:02:51]} 6. O-O {[%clk 0:02:54]}  e6 {[%clk 0:02:49]} 7. Ne5 {[%clk 0:02:54]}  Qb6 {[%clk 0:02:31]} 8. a4 {[%clk 0:02:44]}  Bb7 {[%clk 0:02:27]} 9. b3 {[%clk 0:02:40]}  cxb3 {[%clk 0:02:23]} 10. Qxb3 {[%clk 0:02:40]}  bxa4 {[%clk 0:02:19]} 11. Qxa4 {[%clk 0:02:36]}  Bd6 {[%clk 0:02:07]} 12. Nc4 {[%clk 0:02:28]}  Qd8 {[%clk 0:02:04]} 13. Nxd6+ {[%clk 0:02:25]}  Qxd6 {[%clk 0:02:04]} 14. Ba3 {[%clk 0:02:26]}  Qd7 {[%clk 0:01:57]} 15. Nd2 {[%clk 0:02:19]}  Nd5 {[%clk 0:01:55]} 16. Ne4 {[%clk 0:02:13]}  Nb6 {[%clk 0:01:52]} 17. Qb3 {[%clk 0:01:49]}  Na6 {[%clk 0:01:40]} 18. Nd6+ {[%clk 0:01:43]}  Kd8 {[%clk 0:01:38]} 19. Rfc1 {[%clk 0:01:38]}  Kc7 {[%clk 0:01:26]} 20. Nxb7 {[%clk 0:01:01]}  Kxb7 {[%clk 0:01:21]} 21. Bxc6+ {[%clk 0:00:52]}  Qxc6 {[%clk 0:01:21]} 22. Rxc6 {[%clk 0:00:53]}  Kxc6 {[%clk 0:01:21]} 23. Rc1+ {[%clk 0:00:30]}  Kb7 {[%clk 0:01:21]} 24. Qf3+ {[%clk 0:00:29]}  Nd5 {[%clk 0:01:13]} 25. Qxf7+ {[%clk 0:00:29]}  Kb6 {[%clk 0:01:13]} 26. Qxe6+ {[%clk 0:00:29]} 1-0


[Site "https://www.chess.com"]

[Event "Titled Tuesday Blitz April 11 Late 2023"]
[White "Marchesich, Giovanni"]
[Black "Koziorowicz, Michal"]
[WhiteFideId "2824790"]
[BlackFideId "21809194"]
[WhiteElo "2209"]
[BlackElo "2255"]
[Result "0-1"]
[Round "02"]
[TimeControl "180+2"]
[Date "2023.04.11"]
[WhiteClock "0:00:03"]
[BlackClock "0:01:21"]

1. d4 {[%clk 0:03:00]}  Nf6 {[%clk 0:02:59]} 2. Nf3 {[%clk 0:02:58]}  e6 {[%clk 0:02:59]} 3. e3 {[%clk 0:02:58]}  b6 {[%clk 0:02:59]} 4. Bd3 {[%clk 0:02:58]}  Bb7 {[%clk 0:02:59]} 5. O-O {[%clk 0:02:58]}  Ne4 {[%clk 0:02:59]} 6. c4 {[%clk 0:02:55]}  f5 {[%clk 0:02:59]} 7. b3 {[%clk 0:02:50]}  Be7 {[%clk 0:02:59]} 8. Bb2 {[%clk 0:02:49]}  O-O {[%clk 0:02:59]} 9. Nc3 {[%clk 0:02:50]}  d6 {[%clk 0:02:58]} 10. Nd2 {[%clk 0:02:43]}  Nxc3 {[%clk 0:02:57]} 11. Bxc3 {[%clk 0:02:43]}  Nd7 {[%clk 0:02:56]} 12. f3 {[%clk 0:02:42]}  e5 {[%clk 0:02:44]} 13. d5 {[%clk 0:02:38]}  Nc5 {[%clk 0:02:41]} 14. Bc2 {[%clk 0:02:38]}  a5 {[%clk 0:02:42]} 15. f4 {[%clk 0:02:24]}  e4 {[%clk 0:02:40]} 16. a3 {[%clk 0:02:12]}  Bf6 {[%clk 0:02:40]} 17. Bxf6 {[%clk 0:02:09]}  Qxf6 {[%clk 0:02:40]} 18. b4 {[%clk 0:02:04]}  Nd7 {[%clk 0:02:39]} 19. Nb3 {[%clk 0:02:00]}  axb4 {[%clk 0:02:34]} 20. axb4 {[%clk 0:02:00]}  Qc3 {[%clk 0:02:34]} 21. Qd2 {[%clk 0:01:55]}  Qxc4 {[%clk 0:02:33]} 22. Nd4 {[%clk 0:01:43]}  Rxa1 {[%clk 0:02:28]} 23. Rxa1 {[%clk 0:01:43]}  Ra8 {[%clk 0:02:13]} 24. Rxa8+ {[%clk 0:01:35]}  Bxa8 {[%clk 0:02:14]} 25. Bb3 {[%clk 0:01:34]}  Qa6 {[%clk 0:02:10]} 26. Nxf5 {[%clk 0:01:32]}  Nf6 {[%clk 0:02:10]} 27. Ne7+ {[%clk 0:00:58]}  Kf7 {[%clk 0:02:08]} 28. Nc6 {[%clk 0:00:58]}  Bxc6 {[%clk 0:02:04]} 29. dxc6+ {[%clk 0:00:58]}  Ke7 {[%clk 0:02:04]} 30. Qc3 {[%clk 0:00:52]}  Qe2 {[%clk 0:01:57]} 31. h3 {[%clk 0:00:47]}  Qd3 {[%clk 0:01:34]} 32. Qxd3 {[%clk 0:00:26]}  exd3 {[%clk 0:01:35]} 33. Kf1 {[%clk 0:00:26]}  d5 {[%clk 0:01:34]} 34. Ke1 {[%clk 0:00:23]}  Kd6 {[%clk 0:01:33]} 35. Kd2 {[%clk 0:00:20]}  Kxc6 {[%clk 0:01:33]} 36. Kxd3 {[%clk 0:00:20]}  Kb5 {[%clk 0:01:32]} 37. Kc2 {[%clk 0:00:17]}  Kxb4 {[%clk 0:01:31]} 38. g4 {[%clk 0:00:16]}  c6 {[%clk 0:01:31]} 39. Kb2 {[%clk 0:00:15]}  Ne4 {[%clk 0:01:29]} 40. Bc2 {[%clk 0:00:15]}  Nf2 {[%clk 0:01:28]} 41. Bxh7 {[%clk 0:00:13]}  Nxh3 {[%clk 0:01:29]} 42. g5 {[%clk 0:00:08]}  Kc5 {[%clk 0:01:28]} 43. Bf5 {[%clk 0:00:08]}  Nf2 {[%clk 0:01:28]} 44. Bd7 {[%clk 0:00:07]}  Kd6 {[%clk 0:01:28]} 45. Bc8 {[%clk 0:00:07]}  Nd1+ {[%clk 0:01:25]} 46. Kc2 {[%clk 0:00:06]}  Nxe3+ {[%clk 0:01:26]} 47. Kd3 {[%clk 0:00:07]}  Nc4 {[%clk 0:01:25]} 48. Bb7 {[%clk 0:00:03]}  b5 {[%clk 0:01:23]} 49. f5 {[%clk 0:00:03]}  c5 {[%clk 0:01:23]} 50. g6 {[%clk 0:00:03]}  Ne5+ {[%clk 0:01:22]} 51. Ke3 {[%clk 0:00:03]}  Nd7 {[%clk 0:01:22]} 52. Kf4 {[%clk 0:00:03]}  Nf6 {[%clk 0:01:23]} 53. Kg5 {[%clk 0:00:03]}  Ke5 {[%clk 0:01:22]} 54. Bc6 {[%clk 0:00:03]}  b4 {[%clk 0:01:22]} 55. Ba4 {[%clk 0:00:03]}  c4 {[%clk 0:01:21]} 0-1


[Site "https://www.chess.com"]

[Event "Titled Tuesday Blitz April 11 Late 2023"]
[White "Javakhadze, Zurab"]
[Black "Chemin, Justo Reinaldo"]
[WhiteFideId "13603647"]
[BlackFideId "2101580"]
[WhiteElo "2381"]
[BlackElo "1940"]
[Result "1-0"]
[Round "02"]
[TimeControl "180+2"]
[Date "2023.04.11"]
[WhiteClock "0:00:40"]
[BlackClock "0:00:10"]

1. Nf3 {[%clk 0:02:49]}  e6 {[%clk 0:02:59]} 2. g3 {[%clk 0:02:49]}  d5 {[%clk 0:02:59]} 3. Bg2 {[%clk 0:02:50]}  Nf6 {[%clk 0:02:58]} 4. O-O {[%clk 0:02:51]}  c6 {[%clk 0:02:53]} 5. d3 {[%clk 0:02:47]}  Be7 {[%clk 0:02:52]} 6. Nbd2 {[%clk 0:02:45]}  O-O {[%clk 0:02:51]} 7. e4 {[%clk 0:02:46]}  c5 {[%clk 0:02:44]} 8. Qe2 {[%clk 0:02:38]}  Re8 {[%clk 0:02:43]} 9. Re1 {[%clk 0:02:36]}  Nc6 {[%clk 0:02:35]} 10. e5 {[%clk 0:02:33]}  Nd7 {[%clk 0:02:33]} 11. Nf1 {[%clk 0:02:34]}  Nf8 {[%clk 0:02:32]} 12. h4 {[%clk 0:02:34]}  f6 {[%clk 0:02:19]} 13. N1h2 {[%clk 0:01:58]}  fxe5 {[%clk 0:02:10]} 14. Ng4 {[%clk 0:01:51]}  Nd4 {[%clk 0:01:59]} 15. Qd1 {[%clk 0:01:41]}  Nxf3+ {[%clk 0:01:52]} 16. Qxf3 {[%clk 0:01:23]}  Bd6 {[%clk 0:01:49]} 17. Nxe5 {[%clk 0:01:23]}  Qf6 {[%clk 0:01:39]} 18. Bf4 {[%clk 0:01:13]}  Bxe5 {[%clk 0:01:24]} 19. Bxe5 {[%clk 0:01:13]}  Qxf3 {[%clk 0:01:24]} 20. Bxf3 {[%clk 0:01:14]}  Bd7 {[%clk 0:01:12]} 21. h5 {[%clk 0:01:11]}  Rac8 {[%clk 0:01:09]} 22. Kg2 {[%clk 0:01:04]}  b5 {[%clk 0:01:09]} 23. h6 {[%clk 0:01:01]}  gxh6 {[%clk 0:01:05]} 24. Rh1 {[%clk 0:01:00]}  Ng6 {[%clk 0:01:05]} 25. Bc3 {[%clk 0:01:01]}  d4 {[%clk 0:01:04]} 26. Bd2 {[%clk 0:01:01]}  Ne5 {[%clk 0:01:00]} 27. Be4 {[%clk 0:00:57]}  Nf7 {[%clk 0:00:50]} 28. Bxh6 {[%clk 0:00:57]}  Bc6 {[%clk 0:00:42]} 29. Rae1 {[%clk 0:00:56]}  Bxe4+ {[%clk 0:00:41]} 30. Rxe4 {[%clk 0:00:56]}  e5 {[%clk 0:00:40]} 31. Rg4+ {[%clk 0:00:52]}  Kh8 {[%clk 0:00:36]} 32. Bg7+ {[%clk 0:00:52]}  Kg8 {[%clk 0:00:37]} 33. Bxe5+ {[%clk 0:00:46]}  Kf8 {[%clk 0:00:37]} 34. Bf4 {[%clk 0:00:45]}  Re2 {[%clk 0:00:29]} 35. Rxh7 {[%clk 0:00:45]}  c4 {[%clk 0:00:20]} 36. Rgg7 {[%clk 0:00:45]}  Re7 {[%clk 0:00:14]} 37. Bd6 {[%clk 0:00:40]}  Nxd6 {[%clk 0:00:12]} 38. Rxe7 {[%clk 0:00:40]}  cxd3 {[%clk 0:00:10]} 39. cxd3 {[%clk 0:00:40]} 1-0


[Site "https://www.chess.com"]